fUSD/lending_fUSD_20251117
["ID","MTS","AMOUNT","RATE_DAILY","PERIOD"]
[394256244,1763410245642,-150.0,0.00037933,7]
[394256245,1763410245651,-150.0,0.00037936,7]
[394256246,1763410245660,-150.0,0.00037942,7]
[394256247,1763410245670,-150.0,0.00037942,7]
[394256248,1763410245680,-365.36,0.00037947,14]
[394256249,1763410245689,-150.0,0.0003795,7]
[394256250,1763410245699,-150.0,0.00037953,7]
[394256251,1763410245711,-163.34160733,0.00037957,7]
[394256252,1763410245721,-150.0,0.00037967,7]
[394256253,1763410245730,-150.0,0.00037977,7]
[394256254,1763410245740,-163.34160733,0.00037999,7]
[394256255,1763410245750,-1004.81,0.00038,2]
[394256256,1763410245760,-150.0,0.00038004,7]
[394256257,1763410245769,-150.0,0.00038004,7]
[394256258,1763410245780,-150.0,0.00038006,7]
[394256259,1763410245790,-150.0,0.00038021,7]
[394256260,1763410245800,-150.0,0.00038026,7]
[394256261,1763410245809,-163.34160733,0.0003804,7]
[394256262,1763410245819,-150.0,0.00038051,7]
[394256263,1763410245828,-150.0,0.00038057,7]
[394256264,1763410245839,-150.0,0.00038065,7]
[394256265,1763410245848,-150.0,0.00038065,7]
[394256266,1763410245858,-150.0,0.00038066,7]
[394256269,1763410245867,-150.0,0.00038075,7]
[394256271,1763410245877,-163.34160733,0.00038082,7]
[394256273,1763410245887,-150.0,0.00038095,7]
[394256275,1763410245897,-150.0,0.00038102,7]
[394256277,1763410245906,-150.0,0.0003811,7]
[394256279,1763410245916,-163.34160733,0.00038123,7]
[394256280,1763410245925,-150.0,0.00038126,7]
[394256283,1763410245935,-150.0,0.00038126,7]
[394256285,1763410245944,-150.0,0.00038135,7]
[394256287,1763410245954,-150.0,0.00038135,7]
[394256289,1763410245962,-150.0,0.00038145,7]
[394256291,1763410245972,-150.0,0.00038154,7]
[394256292,1763410245981,-163.34160733,0.00038165,7]
[394256293,1763410245990,-150.0,0.00038178,7]
[394256294,1763410246000,-150.0,0.00038188,7]
[394256295,1763410246009,-150.0,0.00038188,7]
[394256296,1763410246018,-150.0,0.00038194,7]
[394256297,1763410246027,-150.0,0.00038198,7]
[394256298,1763410246036,-1027.49062373,0.000382,120]
[394256299,1763410246045,-163.34160733,0.00038206,7]
[394256300,1763410246056,-150.0,0.00038215,7]
[394256301,1763410246065,-150.0,0.00038219,7]
[394256302,1763410246075,-1000.0,0.00038219,120]
[394256303,1763410246084,-1000.0,0.00038219,120]
[394256304,1763410246093,-1000.0,0.00038219,120]
[394256305,1763410246103,-1000.0,0.00038219,120]
[394256307,1763410246112,-1000.0,0.00038219,120]
[394256308,1763410246121,-644.1989899,0.00038219,120]
[394256310,1763410246131,-150.0,0.00038236,7]
[394256312,1763410246141,-150.0,0.00038242,7]
[394256313,1763410246150,-163.34160733,0.00038248,7]
[394256315,1763410246159,-150.0,0.00038249,7]
[394256316,1763410246168,-150.0,0.00038249,7]
[394256317,1763410246177,-150.0,0.00038255,7]
[394256318,1763410246187,-150.0,0.00038284,7]
[394256319,1763410246196,-150.0,0.00038286,7]
[394256320,1763410246205,-163.34160733,0.00038289,7]
[394256321,1763410246214,-150.0,0.00038303,7]
[394256322,1763410246224,-150.0,0.0003831,7]
[394256323,1763410246283,-150.0,0.0003831,7]
[394256324,1763410246293,-150.0,0.00038331,7]
[394256325,1763410246303,-81.04950746,0.00038331,7]
[394256326,1763410246318,-82.29209987,0.00038331,7]
[394256327,1763410246327,-150.0,0.00038331,7]
[394256328,1763410246337,-150.0,0.00038331,7]
[394256329,1763410246346,-150.0,0.00038331,7]
[394256330,1763410246355,-150.0,0.00038331,7]
[394256331,1763410246364,-150.0,0.00038354,7]
[394256332,1763410246373,-150.0,0.00038371,7]
[394256333,1763410246382,-150.0,0.00038371,7]
[394256334,1763410246393,-163.34160733,0.00038372,7]
[394256335,1763410246403,-150.0,0.00038375,7]
[394256336,1763410246412,-150.0,0.00038378,7]
[394256337,1763410246422,-150.0,0.00038386,7]
[394256338,1763410246432,-1250.0,0.000384,2]
[394256339,1763410246442,-150.0,0.00038407,7]
[394256340,1763410246455,-163.34160733,0.00038414,7]
[394256341,1763410246465,-150.0,0.00038419,7]
[394256342,1763410246475,-150.0,0.00038423,7]
[394256343,1763410246484,-150.0,0.00038428,7]
[394256344,1763410246494,-150.0,0.00038433,7]
[394256345,1763410246504,-150.0,0.00038433,7]
[394256346,1763410246513,-163.34160733,0.00038455,7]
[394256347,1763410246523,-150.0,0.00038463,7]
[394256348,1763410246533,-150.0,0.0003847,7]
[394256349,1763410246543,-150.0,0.00038483,7]
[394256350,1763410246554,-150.0,0.00038493,7]
[394256351,1763410246563,-150.0,0.00038494,7]
[394256352,1763410246573,-150.0,0.00038494,7]
[394256353,1763410246582,-163.34160733,0.00038497,7]
[394256354,1763410246591,-150.0,0.00038507,7]
[394256355,1763410246601,-150.0,0.00038519,7]
[394256356,1763410246611,-163.34160733,0.00038538,7]
[394256357,1763410246620,-150.0,0.00038551,7]
[394256358,1763410246629,-150.0,0.00038554,7]
[394256359,1763410246639,-150.0,0.00038555,7]
[394256360,1763410246648,-150.0,0.00038555,7]
[394256361,1763410246658,-150.0,0.00038559,7]
[394256362,1763410246667,-150.0,0.00038563,7]
[394256363,1763410246677,-163.34160733,0.00038579,7]
[394256364,1763410246687,-150.0,0.00038596,7]
[394256365,1763410246697,-2062.34781255,0.00038604,2]
[394256366,1763410246710,-150.0,0.00038604,7]
[394256367,1763410246719,-150.0,0.00038604,7]
[394256368,1763410246728,-150.0,0.00038617,7]
[394256369,1763410246737,-150.0,0.00038617,7]
[394256370,1763410246746,-5000.0,0.00038617,120]
[394256371,1763410246755,-163.34160733,0.00038621,7]
[394256372,1763410246764,-150.0,0.00038632,7]
[394256373,1763410246774,-150.0,0.00038635,7]
[394256374,1763410246784,-150.0,0.00038638,7]
[394256375,1763410246795,-150.0,0.0003864,7]
[394256376,1763410246805,-150.0,0.00038661,7]
[394256377,1763410246814,-163.34160733,0.00038662,7]
[394256378,1763410246823,-150.0,0.00038678,7]
[394256379,1763410246833,-150.0,0.00038678,7]
[394256380,1763410246843,-150.0,0.00038684,7]
[394256381,1763410246852,-500.0,0.000387,120]
[394256382,1763410246861,-500.0,0.000387,120]
[394256383,1763410246870,-5356.0,0.000387,117]
[394256384,1763410246879,-150.0,0.00038702,7]
[394256385,1763410246889,-163.34160733,0.00038704,7]
[394256386,1763410246897,-150.0,0.00038711,7]
[394256387,1763410246907,-1004.81,0.0003872,2]
[394256388,1763410246916,-150.0,0.00038722,7]
[394256389,1763410246925,-150.0,0.00038722,7]
[394256390,1763410246934,-150.0,0.00038728,7]
[394256391,1763410246944,-150.0,0.00038739,7]
[394256392,1763410246953,-150.0,0.00038739,7]
[394256393,1763410246962,-1000.0,0.00038742,120]
[394256394,1763410246971,-163.34160733,0.00038745,7]
[394256395,1763410246981,-160.65,0.00038767,120]
[394256396,1763410246991,-150.0,0.00038771,7]
[394256397,1763410247000,-150.0,0.00038772,7]
[394256398,1763410247010,-695.0,0.00038776,7]
[394256399,1763410247019,-163.34160733,0.00038787,7]
[394256400,1763410247029,-150.0,0.00038787,7]
[394256401,1763410247038,-150.0,0.00038801,7]
[394256402,1763410247048,-150.0,0.00038801,7]
[394256403,1763410247058,-150.0,0.00038803,7]
[394256404,1763410247067,-150.0,0.00038806,7]
[394256405,1763410247077,-150.0,0.00038816,7]
[394256406,1763410247086,-163.34160733,0.00038828,7]
[394256407,1763410247096,-150.0,0.00038841,7]
[394256408,1763410247105,-882.8,0.00038846,5]
[394256409,1763410247116,-150.0,0.00038861,7]
[394256410,1763410247125,-150.0,0.00038862,7]
[394256411,1763410247134,-150.0,0.00038862,7]
[394256412,1763410247143,-150.0,0.00038863,7]
[394256413,1763410247153,-160.65,0.00038867,120]
[394256414,1763410247162,-2062.34781247,0.0003887,2]
[394256415,1763410247172,-163.34160733,0.0003887,7]
[394256416,1763410247180,-150.0,0.00038878,7]
[394256417,1763410247190,-1287.3515,0.00038888,30]
[394256418,1763410247199,-150.0,0.00038889,7]
[394256419,1763410247209,-150.0,0.00038905,7]
[394256420,1763410247218,-150.0,0.00038911,7]
[394256421,1763410247227,-163.34160733,0.00038911,7]
[394256422,1763410247237,-150.0,0.00038923,7]
[394256423,1763410247246,-150.0,0.00038923,7]
[394256424,1763410247258,-150.0,0.00038939,7]
[394256425,1763410247277,-150.0,0.00038944,7]
[394256426,1763410247288,-150.0,0.00038949,7]
[394256427,1763410247299,-163.34160733,0.00038953,7]
[394256428,1763410247308,-160.65,0.00038967,120]
[394256429,1763410247318,-152.0,0.00038971,3]
[394256430,1763410247327,-150.0,0.00038973,7]
[394256431,1763410247336,-150.0,0.0003898,7]
[394256432,1763410247345,-150.0,0.00038984,7]
[394256433,1763410247355,-150.0,0.00038984,7]
[394256434,1763410247364,-150.0,0.00038993,7]
[394256435,1763410247373,-163.34160733,0.00038994,7]
[394256436,1763410247383,-150.0,0.00039015,7]
[394256437,1763410247392,-150.0,0.00039015,7]
[394256438,1763410247401,-150.0,0.00039015,7]
[394256439,1763410247411,-150.0,0.00039015,7]
[394256440,1763410247419,-150.0,0.00039015,7]
[394256441,1763410247429,-163.34160733,0.00039036,7]
[394256442,1763410247439,-49.25246393,0.00039037,7]
[394256443,1763410247452,-100.74753607,0.00039037,7]
[394256444,1763410247462,-150.0,0.00039046,7]
[394256445,1763410247471,-150.0,0.00039046,7]
[394256446,1763410247481,-150.0,0.0003905,7]
[394256447,1763410247490,-150.0,0.00039057,7]
[394256448,1763410247500,-160.65,0.00039067,120]
[394256449,1763410247509,-163.34160733,0.00039077,7]
[394256450,1763410247519,-150.0,0.00039081,7]
[394256451,1763410247528,-150.0,0.00039086,7]
[394256452,1763410247538,-150.0,0.00039091,7]
[394256453,1763410247549,-150.0,0.00039107,7]
[394256454,1763410247559,-150.0,0.00039107,7]
[394256455,1763410247568,-163.34160733,0.00039119,7]
[394256456,1763410247577,-150.0,0.00039119,7]
[394256457,1763410247587,-150.0,0.00039125,7]
[394256458,1763410247597,-2062.34781247,0.00039135,2]
[394256459,1763410247607,-150.0,0.00039141,7]
[394256460,1763410247617,-150.0,0.00039152,7]
[394256461,1763410247626,-163.34160733,0.0003916,7]
[394256462,1763410247636,-150.0,0.00039167,7]
[394256463,1763410247645,-160.65,0.00039167,120]
[394256464,1763410247655,-150.0,0.00039168,7]
[394256465,1763410247664,-150.0,0.00039168,7]
[394256466,1763410247673,-150.0,0.0003917,7]
[394256467,1763410247683,-150.0,0.00039189,7]
[394256468,1763410247693,-163.34160733,0.00039202,7]
[394256469,1763410247708,-150.0,0.00039214,7]
[394256470,1763410247719,-300.0,0.00039215,7]
[394256471,1763410247728,-150.0,0.00039225,7]
[394256472,1763410247738,-150.0,0.00039227,7]
[394256473,1763410247748,-150.0,0.0003923,7]
[394256474,1763410247758,-150.0,0.0003923,7]
[394256475,1763410247767,-163.34160733,0.00039243,7]
[394256476,1763410247779,-150.0,0.00039243,7]
[394256477,1763410247788,-150.0,0.00039258,7]
[394256478,1763410247799,-150.0,0.00039259,7]
[394256479,1763410247808,-160.65,0.00039267,120]
[394256480,1763410247817,-163.34160733,0.00039285,7]
[394256481,1763410247828,-150.0,0.00039291,7]
[394256482,1763410247837,-150.0,0.00039291,7]
[394256483,1763410247846,-150.0,0.00039302,7]
[394256484,1763410247855,-150.0,0.00039308,7]
[394256485,1763410247865,-150.0,0.00039308,7]
[394256486,1763410247875,-150.0,0.0003931,2]
[394256487,1763410247885,-150.0,0.00039319,7]
[394256488,1763410247894,-163.34160733,0.00039326,7]
[394256489,1763410247904,-150.0,0.00039328,7]
[394256490,1763410247913,-150.0,0.00039346,7]
[394256491,1763410247922,-300.0,0.00039352,7]
[394256492,1763410247932,-150.0,0.00039352,7]
[394256493,1763410247942,-150.0,0.00039352,7]
[394256494,1763410247951,-160.65,0.00039367,120]
[394256495,1763410247961,-163.34160733,0.00039368,7]
[394256496,1763410247971,-150.0,0.00039369,7]
[394256497,1763410247981,-150.0,0.0003939,7]
[394256498,1763410247990,-150.0,0.00039392,7]
[394256499,1763410248001,-150.0,0.00039395,7]
[394256500,1763410248011,-150.0,0.00039398,7]
[394256501,1763410248021,-1027.49062373,0.000394,120]
[394256502,1763410248031,-1211.23908909,0.00039401,2]
[394256503,1763410248043,-460.405,0.00039401,2]
[394256504,1763410248055,-390.70372338,0.00039401,2]
[394256505,1763410248065,-163.34160733,0.00039409,7]
[394256506,1763410248074,-150.0,0.00039413,7]
[394256507,1763410248084,-150.0,0.00039413,7]
[394256508,1763410248094,-150.0,0.00039426,7]
[394256509,1763410248103,-150.0,0.00039426,7]
[394256510,1763410248113,-150.0,0.00039435,7]
[394256511,1763410248123,-163.34160733,0.00039451,7]
[394256512,1763410248132,-160.67,0.00039467,120]
[394256513,1763410248142,-150.0,0.00039468,7]
[394256514,1763410248152,-63.81961443,0.00039471,7]
[394256515,1763410248179,-86.18038557,0.00039471,7]
[394256516,1763410248188,-150.0,0.00039475,7]
[394256517,1763410248200,-150.0,0.00039475,7]
[394256518,1763410248209,-133.01287856,0.00039476,7]
[394256519,1763410248484,-16.98712144,0.00039476,7]
[394256520,1763410248494,-150.0,0.00039479,7]
[394256521,1763410248503,-300.0,0.00039489,7]
[394256522,1763410248513,-163.34160733,0.00039492,7]
[394256523,1763410248523,-150.0,0.00039511,7]
[394256524,1763410248533,-150.0,0.00039523,7]
[394256525,1763410248543,-163.34160733,0.00039534,7]
[394256526,1763410248554,-150.0,0.00039536,7]
[394256527,1763410248565,-150.0,0.00039536,7]
[394256528,1763410248575,-150.0,0.00039537,7]
[394256529,1763410248586,-150.0,0.00039547,7]
[394256530,1763410248595,-150.0,0.0003956,7]
[394256531,1763410248605,-150.0,0.00039567,7]
[394256532,1763410248614,-695.0,0.00039571,120]
[394256533,1763410248625,-163.34160733,0.00039575,7]
[394256534,1763410248635,-150.0,0.00039597,7]
[394256535,1763410248645,-150.0,0.00039597,7]
[394256536,1763410248655,-150.0,0.00039602,7]
[394256537,1763410248664,-150.0,0.00039607,7]
[394256538,1763410248674,-150.0,0.00039611,7]
[394256539,1763410248683,-163.34160733,0.00039617,7]
[394256540,1763410248696,-402.0,0.00039621,2]
[394256541,1763410248707,-150.0,0.00039623,7]
[394256542,1763410248716,-300.0,0.00039626,7]
[394256543,1763410248726,-150.0,0.00039644,7]
[394256544,1763410248735,-150.0,0.00039652,7]
[394256545,1763410248745,-150.0,0.00039655,7]
[394256546,1763410248754,-163.34160733,0.00039658,7]
[394256547,1763410248763,-51.10259101,0.00039659,7]
[394256548,1763410248803,-98.89740899,0.00039659,7]
[394256549,1763410248813,-150.0,0.00039659,7]
[394256550,1763410248822,-2052.94259101,0.00039667,2]
[394256551,1763410248838,-9.40522146,0.00039667,2]
[394256552,1763410248847,-150.0,0.00039676,7]
[394256553,1763410248857,-126.00947847,0.000397,7]
[394256554,1763410250337,-23.99052153,0.000397,7]
[394256555,1763410250346,-163.34160733,0.000397,7]
[394256556,1763410250355,-150.0,0.000397,7]
[394256557,1763410250364,-150.0,0.000397,7]
[394256558,1763410250374,-150.0,0.000397,7]
[394256559,1763410250383,-150.0,0.000397,7]
[394256560,1763410250391,-150.0,0.0003972,7]
[394256561,1763410250402,-150.0,0.0003972,7]
[394256562,1763410250411,-150.0,0.00039727,7]
[394256563,1763410250422,-163.34160733,0.00039741,7]
[394256564,1763410250431,-29.72655126,0.00039744,7]
[394256565,1763410250804,-120.27344874,0.00039744,7]
[394256566,1763410250814,-150.0,0.00039746,7]
[394256567,1763410250824,-150.0,0.00039776,7]
[394256568,1763410250834,-23.80857403,0.00039781,7]
[394256569,1763410250847,-126.19142597,0.00039781,7]
[394256571,1763410250857,-150.0,0.00039781,7]
[394256573,1763410250866,-34.60857403,0.00039783,7]
[394256575,1763410250878,-128.7330333,0.00039783,7]
[394256576,1763410250887,-150.0,0.00039788,7]
[394256578,1763410250897,-150.0,0.00039794,7]
[394256580,1763410250906,-400.0,0.00039804,2]
[394256582,1763410250916,-90.3050867,0.00039811,7]
[394256583,1763410250927,-59.6949133,0.00039811,7]
[394256585,1763410250938,-150.0,0.00039816,7]
[394256587,1763410250947,-163.34160733,0.00039824,7]
[394256589,1763410250957,-150.0,0.00039832,7]
[394256591,1763410250966,-150.0,0.00039836,7]
[394256592,1763410250975,-22.51847937,0.00039843,7]
[394256594,1763410250988,-127.48152063,0.00039843,7]
[394256596,1763410250998,-138.25597717,0.00039843,7]
[394256598,1763410251010,-11.74402283,0.00039843,7]
[394256600,1763410251019,-695.0,0.00039851,2]
[394256602,1763410251028,-150.0,0.00039852,7]
[394256604,1763410251038,-163.34160733,0.00039865,7]
[394256606,1763410251048,-174.0,0.00039871,90]
[394256608,1763410251058,-150.0,0.00039876,7]
[394256610,1763410251068,-150.0,0.00039885,7]
[394256612,1763410251078,-150.0,0.00039895,7]
[394256613,1763410251089,-150.0,0.00039895,7]
[394256615,1763410251099,-2500.0,0.000399,2]
[394256617,1763410251108,-150.0,0.00039904,7]
[394256619,1763410251119,-150.0,0.00039904,7]
[394256621,1763410251129,-163.34160733,0.00039907,7]
[394256623,1763410251138,-150.0,0.0003992,7]
[394256624,1763410251148,-150.0,0.00039928,7]
[394256626,1763410251158,-2062.34781247,0.00039932,15]
[394256629,1763410251167,-150.0,0.00039936,7]
[394256631,1763410251176,-163.34160733,0.00039948,7]
[394256633,1763410251186,-150.0,0.00039955,7]
[394256635,1763410251195,-150.0,0.00039965,7]
[394256637,1763410251204,-150.0,0.00039965,7]
[394256639,1763410251214,-150.0,0.00039965,7]
[394256641,1763410251224,-500.0,0.00039973,5]
[394256642,1763410251233,-480.5565502,0.00039973,5]
[394256644,1763410251243,-500.0,0.00039973,5]
[394256646,1763410251252,-459.11401639,0.00039973,5]
[394257559,1763410461968,500.0,3.98e-05,7]
[394257561,1763410491431,211.88,0.00013699,2]
[394257566,1763410686137,300.0,0.00022206,120]
[394257567,1763410688219,195.0,0.00022206,120]
[394257572,1763411132980,348.82633545,0.0003013,120]
[394257575,1763411175956,151.0,0.00017997,2]
[394257578,1763411208040,-500.0,0.00017999,2]
[394257579,1763411208065,-120.52331372,0.00017999,2]
[394257580,1763411214605,9637.13,0.000162,5]
[394257581,1763411214633,10000.01,0.000162,5]
[394257582,1763411214659,7418.52535958,0.000162,5]
[394257583,1763411221700,550.0,0.00017998,2]
[394257584,1763411222644,234.9761473,0.000179,2]
[394257586,1763411266034,1200.0,0.00017998,2]
[394257587,1763411280183,230.18084066,0.000179,2]
[394257594,1763411322513,321.51008094,0.0003,120]
[394257595,1763411329087,500.0,0.000177,6]
[394257596,1763411331251,1100.0,0.000178,6]
[394257597,1763411333350,1700.0,0.000179,6]
[394257960,1763411374038,210.78428927,0.000179,2]
[394257964,1763411382750,150.0,0.00022274,120]
[394257974,1763411401119,300.0,0.00017998,2]
[394257975,1763411401150,1200.0,0.00017998,2]
[394257976,1763411401697,339.0,0.00017998,2]
[394257983,1763411410266,183.01,0.0001799,2]
[394257984,1763411410479,183.01,0.0001799,2]
[394257986,1763411411041,183.01,0.0001799,2]
[394257989,1763411412207,1081.79,0.0001799,2]
[394257990,1763411412447,804.24872277,0.0001799,2]
[394257991,1763411412469,277.54127723,0.0001799,2]
[394257992,1763411413676,185.44,0.0001799,2]
[394257993,1763411413800,8146.0730557,0.000179,2]
[394257994,1763411422710,1390.95566707,0.00017973,2]
[394257995,1763411422736,309.81993293,0.00017973,2]
[394257996,1763411424564,262.73313407,0.0001799,2]
[394258021,1763411432252,-201.33,0.00017999,2]
[394258023,1763411432263,-56.11936266,0.00017999,2]
[394258024,1763411432272,-131.40163734,0.00017999,2]
[394258025,1763411432311,-131.04095522,0.00017999,2]
[394258026,1763411432320,-501.37804262,0.00017999,2]
[394258027,1763411432330,-500.0,0.00017999,2]
[394258028,1763411432339,-301.68550408,0.00017999,2]
[394258029,1763411432348,-366.03333391,0.00017999,2]
[394258030,1763411432358,-220.82045347,0.00017999,2]
[394258031,1763411432367,-500.0,0.00017999,2]
[394258032,1763411432376,-329.0417107,0.00017999,2]
[394258033,1763411432387,-170.9582893,0.00017999,2]
[394258034,1763411432396,-500.0,0.00017999,2]
[394258035,1763411432405,-500.0,0.00017999,2]
[394258036,1763411432414,-79.42041084,0.00017999,2]
[394258037,1763411432475,-79.96870812,0.00017999,2]
[394258038,1763411432487,-340.61088104,0.00017999,2]
[394258039,1763411432497,-296.20257369,0.00017999,2]
[394258040,1763411432506,-500.0,0.00017999,2]
[394258041,1763411432515,-500.0,0.00017999,2]
[394258042,1763411432524,-500.0,0.00017999,2]
[394258043,1763411432533,-169.28954527,0.00017999,2]
[394258044,1763411432553,-330.71045473,0.00017999,2]
[394258045,1763411432562,-500.0,0.00017999,2]
[394258046,1763411432571,-627.37460493,0.00017999,2]
[394258047,1763411432581,-245.68115005,0.00017999,2]
[394258048,1763411432590,-500.0,0.00017999,2]
[394258049,1763411432599,-500.0,0.00017999,2]
[394258050,1763411432609,-411.78988645,0.00017999,2]
[394258051,1763411432618,-500.0,0.00017999,2]
[394258052,1763411432627,-500.0,0.00017999,2]
[394258053,1763411432636,-500.0,0.00017999,2]
[394258054,1763411432645,-500.0,0.00017999,2]
[394258055,1763411432654,-500.0,0.00017999,2]
[394258056,1763411432663,-500.0,0.00017999,2]
[394258057,1763411432676,-500.0,0.00017999,2]
[394258058,1763411432685,-500.0,0.00017999,2]
[394258059,1763411432695,-500.0,0.00017999,2]
[394258060,1763411432704,-500.0,0.00017999,2]
[394258061,1763411432714,-500.0,0.00017999,2]
[394258062,1763411432724,-500.0,0.00017999,2]
[394258063,1763411432734,-500.0,0.00017999,2]
[394258064,1763411432744,-500.0,0.00017999,2]
[394258065,1763411432754,-402.92009615,0.00017999,2]
[394258066,1763411432768,-97.07990385,0.00017999,2]
[394258067,1763411432777,-500.0,0.00017999,2]
[394258068,1763411432787,-119.96464915,0.00017999,2]
[394258069,1763411432816,-380.03535085,0.00017999,2]
[394258070,1763411432826,-500.0,0.00017999,2]
[394258071,1763411432836,-500.0,0.00017999,2]
[394258072,1763411432846,-500.0,0.00017999,2]
[394258073,1763411432856,-500.0,0.00017999,2]
[394258074,1763411432865,-500.0,0.00017999,2]
[394258075,1763411432876,-500.0,0.00017999,2]
[394258076,1763411432885,-500.0,0.00017999,2]
[394258077,1763411432894,-500.0,0.00017999,2]
[394258078,1763411432904,-500.0,0.00017999,2]
[394258079,1763411432913,-500.0,0.00017999,2]
[394258080,1763411432925,-500.0,0.00017999,2]
[394258081,1763411432934,-500.0,0.00017999,2]
[394258082,1763411432944,-500.0,0.00017999,2]
[394258083,1763411432954,-500.0,0.00017999,2]
[394258084,1763411432963,-500.0,0.00017999,2]
[394258085,1763411432973,-500.0,0.00017999,2]
[394258086,1763411432983,-500.0,0.00017999,2]
[394258087,1763411432994,-500.0,0.00017999,2]
[394258088,1763411433003,-500.0,0.00017999,2]
[394258089,1763411433014,-500.0,0.00017999,2]
[394258090,1763411433023,-500.0,0.00017999,2]
[394258091,1763411433032,-500.0,0.00017999,2]
[394258092,1763411433042,-194.28422313,0.00017999,2]
[394258093,1763411433051,-500.0,0.00017999,2]
[394258094,1763411433061,-500.0,0.00017999,2]
[394258095,1763411433071,-500.0,0.00017999,2]
[394258096,1763411433081,-500.0,0.00017999,2]
[394258097,1763411433093,-500.0,0.00017999,2]
[394258098,1763411433105,-500.0,0.00017999,2]
[394258099,1763411433115,-500.0,0.00017999,2]
[394258100,1763411433125,-500.0,0.00017999,2]
[394258101,1763411433135,-500.0,0.00017999,2]
[394258102,1763411433144,-500.0,0.00017999,2]
[394258103,1763411433154,-200.0,0.00017999,2]
[394258104,1763411433164,-500.0,0.00017999,2]
[394258105,1763411433177,-500.0,0.00017999,2]
[394258106,1763411433187,-500.0,0.00017999,2]
[394258107,1763411433197,-500.0,0.00017999,2]
[394258108,1763411433206,-500.0,0.00017999,2]
[394258109,1763411433217,-500.0,0.00017999,2]
[394258110,1763411433226,-500.0,0.00017999,2]
[394258111,1763411433235,-206011.45696103,0.00018,2]
[394258125,1763411438368,-1875275.28935905,0.00018,2]
[394258126,1763411438378,-885.1608968,0.00018,2]
[394258127,1763411438388,-140374.28833095,0.00018,2]
[394258128,1763411438398,-256.0,0.00018,2]
[394258129,1763411438407,-1765.0861499,0.000181,2]
[394258130,1763411438417,-500.0,0.00018632,2]
[394258131,1763411438428,-278.09,0.00018732,2]
[394258132,1763411438438,-4168.98958351,0.000195,7]
[394258133,1763411438448,-1355.0,0.00019638,2]
[394258134,1763411438457,-420.0,0.00019638,2]
[394258135,1763411438467,-278.09,0.00019718,2]
[394258136,1763411438479,-1680.0,0.00019734,2]
[394258137,1763411438489,-342.97092283,0.000198,2]
[394258138,1763411438498,-195.0,0.000198,2]
[394258139,1763411438507,-250.0,0.000198,2]
[394258140,1763411438516,-25174.53819743,0.0002,5]
[394258141,1763411438526,-5041.75253712,0.0002,4]
[394258142,1763411438535,-211.88,0.00020187,2]
[394258143,1763411438544,-8146.07305565,0.00020332,2]
[394258144,1763411438554,-151.379112,0.000205,2]
[394258145,1763411438563,-250.0,0.00020605,2]
[394258146,1763411438573,-2500.0,0.00020605,2]
[394258148,1763411438582,-278.09,0.00020704,2]
[394258149,1763411438591,-329.0,0.00021427,2]
[394258150,1763411438600,-2351.0,0.00021638,2]